bitfinex-derivatives/quotes_BTCF0:USTF0_20251220
["timestamp","ask_amount","ask_price","bid_price","bid_amount"]
[1766261925415,0.02520814,88311.0,88293.0,0.0113309]
[1766261925618,0.02520814,88310.0,88293.0,0.0113309]
[1766261925810,0.02520814,88309.0,88293.0,0.0113309]
[1766261926010,0.0113283,88314.0,88293.0,0.0113309]
[1766261926210,0.02520813,88313.0,88293.0,0.0113309]
[1766261926415,0.02520813,88312.0,88293.0,0.0113309]
[1766261926617,0.02520813,88311.0,88293.0,0.0113309]
[1766261926818,0.02520813,88310.0,88293.0,0.0113309]
[1766261927117,4e-05,88317.0,88300.0,0.22819934]
[1766261927505,4e-05,88317.0,88304.0,0.0113295]
[1766261927713,4e-05,88317.0,88307.0,0.22819934]
[1766261928420,4e-05,88317.0,88304.0,0.0113295]
[1766261936125,4e-05,88317.0,88307.0,0.22819934]
[1766261937023,4e-05,88317.0,88304.0,0.0113295]
[1766261939425,4e-05,88317.0,88307.0,0.22811946]
[1766261941728,4e-05,88317.0,88304.0,0.0113295]
[1766261942023,4e-05,88317.0,88307.0,0.22811946]
[1766261946025,4e-05,88317.0,88304.0,0.0113295]
[1766261946327,4e-05,88317.0,88307.0,0.22811946]
[1766261962255,4e-05,88317.0,88307.0,0.22813084]
[1766261966052,4e-05,88317.0,88304.0,0.0113295]
[1766261966242,4e-05,88317.0,88307.0,0.22813084]
[1766261966438,4e-05,88317.0,88300.0,0.01133]
[1766261966648,0.0113281,88316.0,88300.0,0.22813084]
[1766261967755,4e-05,88317.0,88300.0,0.22813084]
[1766261970357,0.011328,88316.0,88300.0,0.22813084]
[1766261971546,0.011328,88316.0,88296.0,0.07251136]
[1766261971855,0.011328,88316.0,88300.0,0.22813084]
[1766261973450,4e-05,88317.0,88300.0,0.22813084]
[1766261975252,4e-05,88317.0,88300.0,0.23946084]
[1766261977252,0.22813084,88320.0,88300.0,0.23946084]
[1766261977458,0.0245999,88319.0,88303.0,0.0113296]
[1766261977656,0.0245999,88318.0,88303.0,0.0113296]
[1766261977856,0.22813084,88320.0,88303.0,0.0113296]
[1766261978058,0.02459988,88319.0,88303.0,0.0113296]
[1766261978360,0.02459988,88318.0,88303.0,0.0113296]
[1766261978549,0.22830079,88320.0,88303.0,0.0113296]
[1766261978749,0.02459969,88319.0,88303.0,0.0113296]
[1766261978950,0.02459969,88318.0,88303.0,0.0113296]
[1766261979150,0.22830079,88320.0,88303.0,0.0113296]
[1766261979350,0.02459984,88319.0,88303.0,0.0113296]
[1766261979551,0.02459984,88318.0,88303.0,0.0113296]
[1766261979859,0.22830079,88320.0,88303.0,0.0113296]
[1766261980159,0.0245998,88319.0,88303.0,0.0113296]
[1766261980360,0.0245998,88318.0,88303.0,0.0113296]
[1766261980562,0.22830079,88320.0,88303.0,0.0113296]
[1766261980757,0.02459978,88319.0,88303.0,0.0113296]
[1766261980951,0.02459978,88318.0,88303.0,0.0113296]
[1766261981160,0.22830079,88320.0,88303.0,0.0113296]
[1766261981359,0.02459975,88319.0,88303.0,0.0113296]
[1766261981559,0.02459975,88318.0,88303.0,0.0113296]
[1766261981760,0.22830079,88320.0,88300.0,0.22813084]
[1766261981960,0.0245998,88319.0,88300.0,0.22813084]
[1766261982162,0.0245998,88318.0,88300.0,0.22813084]
[1766261982465,0.22830079,88320.0,88300.0,0.22813084]
[1766261982657,0.02459995,88319.0,88300.0,0.22813084]
[1766261982858,0.02459995,88318.0,88300.0,0.22813084]
[1766261983060,0.22830079,88320.0,88300.0,0.22813084]
[1766261983365,0.02459997,88319.0,88300.0,0.22813084]
[1766261983567,0.02459997,88318.0,88300.0,0.22813084]
[1766261983864,0.22830079,88320.0,88300.0,0.22813084]
[1766261984066,0.02460001,88319.0,88300.0,0.22813084]
[1766261984267,0.02460001,88318.0,88300.0,0.22813084]
[1766261984456,0.22830079,88320.0,88300.0,0.22813084]
[1766261984657,0.02460018,88319.0,88300.0,0.22813084]
[1766261984857,0.02460018,88318.0,88300.0,0.22813084]
[1766261985058,0.22830079,88320.0,88300.0,0.22813084]
[1766261985258,0.02460017,88319.0,88300.0,0.22813084]
[1766261985458,0.02460017,88318.0,88300.0,0.22813084]
[1766261985661,0.02460037,88317.0,88301.0,0.0113299]
[1766261985860,0.22830079,88320.0,88301.0,0.0113299]
[1766261986060,0.02460034,88319.0,88301.0,0.0113299]
[1766261986260,0.02460034,88318.0,88301.0,0.0113299]
[1766261986454,0.22830079,88320.0,88301.0,0.0113299]
[1766261986658,0.02460058,88319.0,88301.0,0.0113299]
[1766261986860,0.02460058,88318.0,88301.0,0.0113299]
[1766261987060,0.22830079,88320.0,88301.0,0.0113299]
[1766261987261,0.02460057,88319.0,88301.0,0.0113299]
[1766261987469,0.02460057,88318.0,88301.0,0.0113299]
[1766261987669,0.22830079,88320.0,88301.0,0.0113299]
[1766261987969,0.02460082,88319.0,88301.0,0.0113299]
[1766261988272,0.02460082,88318.0,88301.0,0.0113299]
[1766261988566,0.22830079,88320.0,88301.0,0.0113299]
[1766261988767,0.02460133,88319.0,88301.0,0.0113299]
[1766261988968,0.02460133,88318.0,88301.0,0.0113299]
[1766261989161,0.22830079,88320.0,88301.0,0.0113299]
[1766261989362,0.02460194,88319.0,88301.0,0.0113299]
[1766261989563,0.02460194,88318.0,88301.0,0.0113299]
[1766261989765,0.22830079,88320.0,88301.0,0.0113299]
[1766261989960,0.02460194,88319.0,88301.0,0.0113299]
[1766261990156,0.02460194,88318.0,88301.0,0.0113299]
[1766261990361,0.02460234,88317.0,88301.0,0.0113299]
[1766261990568,0.22830079,88320.0,88303.0,0.0113296]
[1766261990870,0.02460233,88319.0,88303.0,0.0113296]
[1766261991069,0.02460233,88318.0,88303.0,0.0113296]
[1766261991273,0.02460298,88317.0,88303.0,0.0113296]
[1766261991472,0.22830079,88320.0,88303.0,0.0113296]
[1766261991674,0.02460298,88319.0,88303.0,0.0113296]
[1766261991877,0.02460298,88318.0,88303.0,0.0113296]
[1766261992174,0.02460298,88317.0,88303.0,0.0113296]
[1766261992475,0.22830079,88320.0,88306.0,0.0113293]
[1766261992674,0.02460377,88319.0,88306.0,0.0113293]
[1766261992975,0.02460377,88318.0,88306.0,0.0113293]
[1766261993274,0.02460377,88317.0,88308.0,0.22813084]
[1766261993477,0.00016995,88320.0,88307.0,0.22813084]
[1766261993675,0.02460447,88319.0,88310.0,0.22813084]
[1766261993872,0.02460447,88318.0,88310.0,0.22813084]
[1766261994073,0.02460447,88317.0,88310.0,0.22813084]
[1766261994270,0.00016995,88320.0,88310.0,0.22813084]
[1766261994470,0.02460548,88319.0,88310.0,0.22813084]
[1766261994669,0.02460548,88318.0,88310.0,0.22813084]
[1766261994870,0.02460548,88317.0,88310.0,0.22813084]
[1766261995071,0.00016995,88320.0,88307.0,0.22813084]
[1766261995275,0.02460548,88319.0,88310.0,0.22813084]
[1766261995474,0.02460548,88318.0,88310.0,0.22813084]
[1766261995776,0.00016995,88320.0,88310.0,0.22813084]
[1766261995777,0.02460548,88317.0,88310.0,0.22813084]
[1766261995978,0.00016995,88320.0,88310.0,0.22813084]
[1766261996178,0.02460701,88319.0,88307.0,0.22813084]
[1766261996369,0.02460701,88318.0,88310.0,0.22813084]
[1766261996569,0.02460701,88317.0,88310.0,0.22813084]
[1766261996769,0.00016995,88320.0,88310.0,0.22813084]
[1766261996969,0.02460998,88319.0,88310.0,0.22813084]
[1766261997172,0.02460998,88318.0,88310.0,0.22813084]
[1766261997368,0.00016995,88320.0,88310.0,0.22813084]
[1766261997369,0.02460998,88317.0,88310.0,0.22813084]
[1766261997577,0.00016995,88320.0,88310.0,0.22813084]
[1766261997780,0.02460998,88319.0,88310.0,0.22813084]
[1766261998079,0.02460998,88318.0,88310.0,0.22813084]
[1766261998279,0.02460998,88317.0,88310.0,0.22813084]
[1766261998481,0.00016995,88320.0,88307.0,0.22814664]
[1766261998677,0.02461086,88319.0,88310.0,0.22814664]
[1766261998982,0.02461086,88318.0,88310.0,0.22814664]
[1766261999180,0.02461086,88317.0,88310.0,0.22814664]
[1766261999374,0.00016995,88320.0,88310.0,0.22814664]
[1766261999576,0.02461091,88319.0,88310.0,0.22814664]
[1766261999775,0.00016995,88320.0,88310.0,0.22814664]
[1766261999776,0.02461091,88318.0,88310.0,0.22814664]
[1766261999985,0.00016995,88320.0,88310.0,0.22814664]
[1766262000280,0.0246109,88319.0,88310.0,0.22814664]
[1766262000482,0.00016995,88320.0,88310.0,0.22814664]
[1766262000685,0.02461093,88319.0,88310.0,0.22814664]
[1766262000981,0.00016995,88320.0,88310.0,0.22814664]
[1766262001184,0.02461093,88319.0,88310.0,0.22814664]
[1766262001385,0.00016995,88320.0,88306.0,0.0113293]
[1766262001681,0.02461097,88319.0,88306.0,0.0113293]
[1766262001982,0.00016995,88320.0,88306.0,0.0113293]
[1766262002182,0.02461049,88319.0,88306.0,0.0113293]
[1766262002382,0.00016995,88320.0,88306.0,0.0113293]
[1766262002771,0.02460984,88319.0,88306.0,0.0113293]
[1766262002976,0.00016995,88320.0,88306.0,0.0113293]
[1766262004583,0.00016995,88320.0,88302.0,0.0113298]
[1766262005584,0.02460826,88319.0,88302.0,0.0113298]
[1766262005784,0.00016995,88320.0,88302.0,0.0113298]
[1766262005988,0.02460826,88319.0,88300.0,0.22814636]
[1766262006185,0.00016995,88320.0,88300.0,0.22814636]
[1766262006486,0.02460877,88319.0,88300.0,0.22814636]
[1766262006686,0.02460877,88318.0,88300.0,0.22814636]
[1766262006888,0.00016995,88320.0,88300.0,0.22814636]
[1766262007086,0.02460877,88319.0,88300.0,0.22814636]
[1766262007286,0.00016995,88320.0,88300.0,0.22814636]
[1766262007287,0.02460877,88318.0,88300.0,0.22814636]
[1766262007488,0.00016995,88320.0,88300.0,0.22814636]
[1766262007689,0.02460876,88319.0,88300.0,0.22814636]
[1766262007886,0.02460876,88318.0,88300.0,0.22814636]
[1766262008087,0.00016995,88320.0,88300.0,0.22814636]
[1766262008288,0.02460881,88319.0,88300.0,0.22814636]
[1766262008493,0.02460881,88318.0,88300.0,0.22814636]
[1766262008790,0.00016995,88320.0,88300.0,0.22814636]
[1766262008980,0.02460875,88319.0,88300.0,0.22814636]
[1766262009178,0.02460875,88318.0,88300.0,0.22814636]
[1766262009377,0.00016995,88320.0,88300.0,0.22814636]
[1766262009687,0.02460876,88319.0,88300.0,0.22814636]
[1766262009892,0.02460876,88318.0,88300.0,0.22814636]
[1766262010078,0.02460876,88317.0,88300.0,0.22814636]
[1766262010284,0.0113278,88318.0,88300.0,0.22814636]
[1766262010480,0.0113289,88310.0,88295.0,0.06118086]
[1766262010680,0.0113292,88307.0,88292.0,5e-08]
[1766262011381,0.0113287,88311.0,88292.0,5e-08]
[1766262015202,0.0113292,88307.0,88292.0,5e-08]
[1766262016301,0.0113287,88311.0,88292.0,5e-08]
[1766262020906,0.0113283,88315.0,88293.0,0.011331]
[1766262021106,0.02459273,88314.0,88293.0,0.011331]
[1766262021405,0.0113286,88312.0,88292.0,5e-08]
[1766262021799,0.0113286,88312.0,88292.0,0.01133105]
[1766262023906,0.22814636,88310.0,88292.0,5e-08]
[1766262024105,0.0113286,88312.0,88292.0,5e-08]
[1766262026013,0.011328,88316.0,88292.0,5e-08]
[1766262026206,0.02459091,88315.0,88292.0,5e-08]
[1766262026404,0.02459091,88314.0,88294.0,0.0113308]
[1766262026604,0.011328,88316.0,88297.0,0.0113305]
[1766262031312,0.02457328,88315.0,88297.0,0.0113305]
[1766262031508,0.011328,88316.0,88297.0,0.0113305]
[1766262032220,0.02457419,88315.0,88297.0,0.0113305]
[1766262032521,0.011328,88316.0,88297.0,0.0113305]
[1766262032822,0.02457419,88315.0,88297.0,0.0113305]
[1766262033013,0.011328,88316.0,88297.0,0.0113305]
[1766262036412,0.011328,88316.0,88293.0,0.0113308]
[1766262036611,0.0113283,88314.0,88293.0,0.0113308]
[1766262039412,0.0113283,88314.0,88296.0,0.0113306]
[1766262041518,0.0113283,88314.0,88292.0,0.01133105]
[1766262043128,0.02459316,88313.0,88293.0,0.06113108]
[1766262043318,0.02459316,88312.0,88293.0,0.06113108]
[1766262043519,0.0113283,88314.0,88293.0,0.06113108]
[1766262043720,0.02459321,88313.0,88293.0,0.06113108]
[1766262043915,0.02459321,88312.0,88293.0,0.06113108]
[1766262044123,0.0113283,88314.0,88293.0,0.06113108]
[1766262044323,0.02459326,88313.0,88293.0,0.06113108]
[1766262044523,0.02459326,88312.0,88293.0,0.06113108]
[1766262044727,0.0113283,88314.0,88293.0,0.06113108]
[1766262044926,0.02459326,88313.0,88293.0,0.06113108]
[1766262045130,0.02459326,88312.0,88293.0,0.06113108]
[1766262045431,0.0113283,88314.0,88293.0,0.06113108]
[1766262045624,0.02459328,88313.0,88293.0,0.06113108]
[1766262045830,0.02459328,88312.0,88294.0,0.0113308]
[1766262046128,0.0113283,88314.0,88294.0,0.0113308]
[1766262046330,0.02459331,88313.0,88294.0,0.0113308]
[1766262046629,0.02459331,88312.0,88294.0,0.0113308]
[1766262046922,0.0113283,88314.0,88294.0,0.0113308]
[1766262047129,0.02459331,88313.0,88294.0,0.0113308]
[1766262047428,0.02459331,88312.0,88294.0,0.0113308]
[1766262047622,0.0113283,88314.0,88294.0,0.0113308]
[1766262047922,0.02459336,88313.0,88294.0,0.0113308]
[1766262048125,0.02459336,88312.0,88294.0,0.0113308]
[1766262048420,0.0113283,88314.0,88294.0,0.0113308]
[1766262048622,0.02459342,88313.0,88294.0,0.0113308]
[1766262048821,0.02459342,88312.0,88294.0,0.0113308]
[1766262049017,0.0113283,88314.0,88294.0,0.0113308]
[1766262049222,0.02459342,88313.0,88294.0,0.0113308]
[1766262049521,0.02459342,88312.0,88294.0,0.0113308]
[1766262049721,0.0113283,88314.0,88294.0,0.0113308]
[1766262049922,0.02459348,88313.0,88294.0,0.0113308]
[1766262050123,0.02459348,88312.0,88294.0,0.0113308]
[1766262050323,0.0113283,88314.0,88294.0,0.0113308]
[1766262050524,0.02459356,88313.0,88294.0,0.0113308]
[1766262050725,0.02459356,88312.0,88294.0,0.0113308]
[1766262050933,0.0113283,88314.0,88294.0,0.0113308]
[1766262051231,0.02459356,88313.0,88294.0,0.0113308]
[1766262051532,0.02459356,88312.0,88294.0,0.0113308]
[1766262051723,0.0113283,88314.0,88294.0,0.0113308]
[1766262051926,0.02459365,88313.0,88294.0,0.0113308]
[1766262052127,0.02459365,88312.0,88294.0,0.0113308]
[1766262052326,0.0113283,88314.0,88294.0,0.0113308]
[1766262052626,0.02459373,88313.0,88294.0,0.0113308]
[1766262052826,0.02459373,88312.0,88294.0,0.0113308]
[1766262053026,0.0113283,88314.0,88294.0,0.0113308]
[1766262053228,0.02459373,88313.0,88294.0,0.0113308]
[1766262053431,0.02459373,88312.0,88294.0,0.0113308]
[1766262053631,0.0113283,88314.0,88294.0,0.0113308]
[1766262053832,0.02459384,88313.0,88294.0,0.0113308]
[1766262054024,0.02459384,88312.0,88294.0,0.0113308]
[1766262054227,0.0113283,88314.0,88294.0,0.0113308]
[1766262054533,0.02459401,88313.0,88294.0,0.0113308]
[1766262054733,0.02459401,88312.0,88294.0,0.0113308]
[1766262054935,0.0113283,88314.0,88294.0,0.0113308]
[1766262055233,0.02459401,88313.0,88294.0,0.0113308]
[1766262055433,0.02459401,88312.0,88294.0,0.0113308]
[1766262055636,0.0113283,88314.0,88294.0,0.0113308]
[1766262055836,0.02459424,88313.0,88294.0,0.0113308]
[1766262056034,0.02459424,88312.0,88294.0,0.0113308]
[1766262056333,0.0113283,88314.0,88294.0,0.0113308]
[1766262056533,0.02459446,88313.0,88294.0,0.0113308]
[1766262056734,0.02459446,88312.0,88294.0,0.0113308]
[1766262056934,0.0113283,88314.0,88294.0,0.0113308]
[1766262057135,0.02459446,88313.0,88294.0,0.0113308]
[1766262057336,0.0113286,88312.0,88294.0,0.0113308]
[1766262060230,0.0113286,88312.0,88292.0,0.06113113]
[1766262060425,0.0113286,88312.0,88293.0,0.06113108]
[1766262060631,0.011329,88309.0,88292.0,0.06113113]
[1766262060831,0.0113285,88313.0,88292.0,0.06113113]
[1766262061032,0.02460893,88312.0,88292.0,0.06113113]
[1766262061230,0.0113285,88313.0,88292.0,0.06113113]
[1766262061431,0.02460878,88312.0,88292.0,0.06113113]
[1766262061634,0.0113285,88313.0,88292.0,0.06113113]
[1766262061829,0.02460878,88312.0,88292.0,0.06113113]
[1766262062037,0.0113285,88313.0,88292.0,0.06113113]
[1766262062237,0.02460868,88312.0,88292.0,0.06113113]
[1766262062536,0.0113285,88313.0,88292.0,0.06113113]
[1766262062841,0.02460867,88312.0,88293.0,0.011331]
[1766262063138,0.0113285,88313.0,88293.0,0.011331]
[1766262063327,0.02460857,88312.0,88293.0,0.011331]
[1766262063530,0.22821776,88310.0,88293.0,0.011331]
[1766262071848,0.22821611,88310.0,88293.0,0.011331]
[1766262072039,0.23954491,88310.0,88292.0,0.06113113]
[1766262074048,0.22821611,88310.0,88293.0,0.0113309]
[1766262076655,0.22821611,88310.0,88292.0,0.06113113]
[1766262076853,0.0113289,88309.0,88292.0,0.06113113]
[1766262077055,0.0113294,88306.0,88292.0,5e-08]
[1766262077959,0.23954501,88310.0,88292.0,5e-08]
[1766262087270,0.0113291,88308.0,88292.0,5e-08]
[1766262115387,0.2282394,88310.0,88292.0,5e-08]
[1766262115580,0.0246201,88309.0,88292.0,5e-08]
[1766262115781,0.0246201,88308.0,88292.0,5e-08]
[1766262115983,0.2282394,88310.0,88292.0,5e-08]
[1766262116279,0.0246201,88309.0,88292.0,5e-08]
[1766262116479,0.0246201,88308.0,88292.0,5e-08]
[1766262116681,0.2282394,88310.0,88292.0,5e-08]
[1766262116881,0.0246211,88309.0,88292.0,5e-08]
[1766262117092,0.0246211,88308.0,88292.0,5e-08]
[1766262117287,0.2282394,88310.0,88292.0,0.01133115]
[1766262117487,0.0246211,88309.0,88292.0,0.01133115]
[1766262117683,0.0246211,88308.0,88292.0,0.01133115]
[1766262117882,0.2282394,88310.0,88292.0,0.01133115]
[1766262118087,0.0246211,88309.0,88292.0,0.01133115]
[1766262118288,0.0246211,88308.0,88292.0,0.01133115]
[1766262118490,0.2282394,88310.0,88292.0,0.01133115]
[1766262118686,0.02463208,88309.0,88292.0,0.01133115]
[1766262118987,0.02463208,88308.0,88292.0,0.01133115]
[1766262119186,0.0113287,88311.0,88292.0,0.01133115]
[1766262119388,0.25287148,88310.0,88292.0,0.01133115]
[1766262119587,0.02463208,88309.0,88292.0,0.01133115]
[1766262119789,0.02463208,88308.0,88292.0,0.01133115]
[1766262119980,0.2282394,88310.0,88292.0,0.01133115]
[1766262120175,0.02463208,88309.0,88292.0,0.01133115]
[1766262120391,0.02463208,88308.0,88292.0,0.01133115]
[1766262120590,0.2282394,88310.0,88292.0,0.01133115]
[1766262120781,0.02463208,88309.0,88292.0,0.01133115]
[1766262120976,0.02463208,88308.0,88292.0,0.01133115]
[1766262121186,0.2282394,88310.0,88292.0,5e-08]
[1766262121490,0.02463209,88309.0,88292.0,5e-08]
[1766262121692,0.02463209,88308.0,88292.0,5e-08]
[1766262121985,0.0113282,88315.0,88293.0,0.0113309]
[1766262122189,1.71e-06,88314.0,88300.0,0.2282394]
[1766262122392,0.00016995,88320.0,88307.0,0.0113291]
[1766262122688,0.22840935,88320.0,88303.0,0.0113296]
[1766262123590,0.00016995,88320.0,88303.0,0.0113296]
[1766262124695,0.0113267,88327.0,88306.0,0.0113293]
[1766262124884,0.0113262,88331.0,88309.0,0.0113289]
[1766262125594,0.00016985,88329.0,88311.0,0.00016985]
[1766262126184,0.01149625,88329.0,88311.0,0.00016985]
[1766262126686,0.0113268,88326.0,88311.0,0.00016985]
[1766262130591,0.0113272,88323.0,88311.0,0.00016985]
[1766262134288,0.02448133,88322.0,88311.0,0.00016985]
[1766262134487,0.0113272,88323.0,88311.0,0.00016985]
[1766262134698,0.02448133,88322.0,88311.0,0.00016985]
[1766262134898,0.02448133,88321.0,88311.0,0.00016985]
[1766262135098,0.0113272,88323.0,88311.0,0.00016985]
[1766262135301,0.02448089,88322.0,88311.0,0.00016985]
[1766262135491,0.02448089,88321.0,88311.0,0.00016985]
[1766262135691,0.0113272,88323.0,88311.0,0.00016985]
[1766262135891,0.0244809,88322.0,88311.0,0.00016985]
[1766262136099,0.0244809,88321.0,88311.0,0.00016985]
[1766262136301,0.0113272,88323.0,88311.0,0.00016985]
[1766262136505,0.02448054,88322.0,88311.0,0.00016985]
[1766262136800,0.02448054,88321.0,88311.0,0.00016985]
[1766262137098,0.0113272,88323.0,88311.0,0.00016985]
[1766262137291,0.02448022,88322.0,88311.0,0.00016985]
[1766262137491,0.02448022,88321.0,88311.0,0.00016985]
[1766262137696,0.0113272,88323.0,88311.0,0.00016985]
[1766262138000,0.02448028,88322.0,88311.0,0.00016985]
[1766262138190,0.0113272,88323.0,88311.0,0.00016985]
[1766262138191,0.02448028,88321.0,88311.0,0.00016985]
[1766262138391,0.0113272,88323.0,88311.0,0.00016985]
[1766262138592,0.02448033,88322.0,88311.0,0.00016985]
[1766262138803,0.0113272,88323.0,88311.0,0.00016985]
[1766262139001,0.02448033,88322.0,88311.0,0.00016985]
[1766262139304,0.0113272,88323.0,88311.0,0.00016985]
[1766262139603,0.02448057,88322.0,88311.0,0.00016985]
[1766262139792,0.0113272,88323.0,88311.0,0.00016985]
[1766262139994,0.02448057,88322.0,88311.0,0.00016985]
[1766262140194,0.0113272,88323.0,88311.0,0.00016985]
[1766262140497,0.02448093,88322.0,88311.0,0.00016985]
[1766262140701,0.0113272,88323.0,88311.0,0.00016985]
[1766262140895,0.02448093,88322.0,88311.0,0.00016985]
[1766262141096,0.0113272,88323.0,88311.0,0.00016985]
[1766262141297,0.02448158,88322.0,88311.0,0.00016985]
[1766262141506,0.0113272,88323.0,88311.0,0.00016985]
[1766262143104,0.02448371,88322.0,88311.0,0.00016985]
[1766262143309,0.0113272,88323.0,88311.0,0.00016985]
[1766262143606,0.02448371,88322.0,88311.0,0.00016985]
[1766262143808,0.0113272,88323.0,88311.0,0.00016985]
[1766262144000,0.02448371,88322.0,88311.0,0.00016985]
[1766262144308,0.0113272,88323.0,88311.0,0.00016985]
[1766262144609,0.02448514,88322.0,88311.0,0.00016985]
[1766262144808,0.0113272,88323.0,88311.0,0.00016985]
[1766262145005,0.02448514,88322.0,88311.0,0.00016985]
[1766262145310,0.0113272,88323.0,88311.0,0.00016985]
[1766262145493,0.02448693,88322.0,88303.0,0.0113296]
[1766262145693,0.0113272,88323.0,88303.0,0.0113296]
[1766262145897,0.02448694,88322.0,88303.0,0.0113296]
[1766262146207,0.0113272,88323.0,88303.0,0.0113296]
[1766262146507,0.02448904,88322.0,88304.0,0.00016985]
[1766262146709,0.0113272,88323.0,88305.0,0.0113294]
[1766262146908,0.02448904,88322.0,88305.0,0.0113294]
[1766262147210,0.0113272,88323.0,88305.0,0.0113294]
[1766262147410,0.02449158,88322.0,88305.0,0.0113294]
[1766262147608,0.0113272,88323.0,88305.0,0.0113294]
[1766262147809,0.02449158,88322.0,88305.0,0.0113294]
[1766262148114,0.02449463,88321.0,88305.0,0.0113294]
[1766262148301,0.0113272,88323.0,88305.0,0.0113294]
[1766262148501,0.02449464,88322.0,88305.0,0.0113294]
[1766262148804,0.02449464,88321.0,88305.0,0.0113294]
[1766262149009,0.0113272,88323.0,88305.0,0.0113294]
[1766262149209,0.0244128,88322.0,88305.0,0.0113294]
[1766262149402,0.0113272,88323.0,88305.0,0.0113294]
[1766262149403,0.0244128,88321.0,88305.0,0.0113294]
[1766262149603,0.0244128,88320.0,88305.0,0.0113294]
[1766262149805,0.0113272,88323.0,88305.0,0.0113294]
[1766262150104,0.02441619,88322.0,88305.0,0.0113294]
[1766262150304,0.02441619,88321.0,88305.0,0.0113294]
[1766262150603,0.0113272,88323.0,88305.0,0.0113294]
[1766262150604,0.02441619,88320.0,88305.0,0.0113294]
[1766262150804,0.0113272,88323.0,88305.0,0.0113294]
[1766262151004,0.02441643,88322.0,88305.0,0.0113294]
[1766262151208,0.02441643,88321.0,88305.0,0.0113294]
[1766262151407,0.02441643,88320.0,88305.0,0.0113294]
[1766262151610,0.0113267,88327.0,88305.0,0.0113294]
[1766262151808,0.02442116,88326.0,88305.0,0.0113294]
[1766262152003,0.02442116,88325.0,88305.0,0.0113294]
[1766262152205,0.02442116,88324.0,88305.0,0.0113294]
[1766262152409,0.02442116,88323.0,88305.0,0.0113294]
[1766262152614,0.02442116,88322.0,88305.0,0.0113294]
[1766262152911,0.02442116,88321.0,88305.0,0.0113294]
[1766262153106,0.02442116,88320.0,88305.0,0.0113294]
[1766262153308,0.0113267,88327.0,88308.0,0.011329]
[1766262153505,0.02443054,88326.0,88308.0,0.011329]
[1766262153704,0.02443054,88325.0,88308.0,0.011329]
[1766262153905,0.02443054,88324.0,88308.0,0.011329]
[1766262154107,0.02443054,88323.0,88308.0,0.011329]
[1766262154308,0.02443054,88322.0,88308.0,0.011329]
[1766262154510,0.02443054,88321.0,88308.0,0.011329]
[1766262154812,0.02443054,88320.0,88308.0,0.011329]
[1766262155017,0.02443054,88319.0,88308.0,0.011329]
[1766262155212,0.0113267,88327.0,88308.0,0.011329]
[1766262155409,0.02443623,88326.0,88308.0,0.011329]
[1766262155608,0.02443623,88325.0,88308.0,0.011329]
[1766262155812,0.02443623,88324.0,88304.0,0.00016985]
[1766262156014,0.02443623,88323.0,88310.0,0.0113287]
[1766262156210,0.02443623,88322.0,88310.0,0.0113287]
[1766262156418,0.00016985,88329.0,88310.0,0.0113287]
[1766262156616,0.02443202,88328.0,88310.0,0.0113287]
[1766262156915,0.02443202,88327.0,88310.0,0.0113287]
[1766262157120,0.02443202,88326.0,88310.0,0.0113287]
[1766262157410,0.02443202,88325.0,88310.0,0.0113287]
[1766262157615,0.02443202,88324.0,88310.0,0.0113287]
[1766262157815,0.02443202,88323.0,88310.0,0.0113287]
[1766262158010,0.02443202,88322.0,88310.0,0.0113287]
[1766262158213,0.00016985,88329.0,88310.0,0.0113287]
[1766262158414,0.02442887,88328.0,88310.0,0.0113287]
[1766262158616,0.02442887,88327.0,88310.0,0.0113287]
[1766262158920,0.02442887,88326.0,88310.0,0.0113287]
[1766262159217,0.02442887,88325.0,88310.0,0.0113287]
[1766262159418,0.02442887,88324.0,88310.0,0.0113287]
[1766262159715,0.02442887,88323.0,88310.0,0.0113287]
[1766262159917,0.00016985,88329.0,88310.0,0.0113287]
[1766262160105,0.02442776,88328.0,88310.0,0.0113287]
[1766262160415,0.02442776,88327.0,88310.0,0.0113287]
[1766262160615,0.02442776,88326.0,88310.0,0.0113287]
[1766262160816,0.02442776,88325.0,88310.0,0.0113287]
[1766262161115,0.02442776,88324.0,88310.0,0.0113287]
[1766262161315,0.02442776,88323.0,88310.0,0.0113287]
[1766262161517,0.00016985,88329.0,88310.0,0.0113287]
[1766262161715,0.02442626,88328.0,88310.0,0.0113287]
[1766262161917,0.02442626,88327.0,88310.0,0.0113287]
[1766262162117,0.02442626,88326.0,88310.0,0.0113287]
[1766262162317,0.02442626,88325.0,88306.0,0.0113293]
[1766262162517,0.02442626,88324.0,88306.0,0.0113293]
[1766262162720,0.02442626,88323.0,88306.0,0.0113293]
[1766262162919,0.0113266,88328.0,88306.0,0.0113293]
[1766262163113,0.02442541,88327.0,88306.0,0.0113293]
[1766262163314,0.02442541,88326.0,88306.0,0.0113293]
[1766262163514,0.02442541,88325.0,88306.0,0.0113293]
[1766262163715,0.02442541,88324.0,88306.0,0.0113293]
[1766262164022,0.02442541,88323.0,88306.0,0.0113293]
[1766262164216,0.0113266,88328.0,88306.0,0.0113293]
[1766262164521,0.02442435,88327.0,88306.0,0.0113293]
[1766262164719,0.02442435,88326.0,88306.0,0.0113293]
[1766262164922,0.02442435,88325.0,88306.0,0.0113293]
[1766262165122,0.02442435,88324.0,88306.0,0.0113293]
[1766262165325,0.02442435,88323.0,88306.0,0.0113293]
[1766262165517,0.0113266,88328.0,88306.0,0.0113293]
[1766262165718,0.02442399,88327.0,88306.0,0.0113293]
[1766262165919,0.02442399,88326.0,88306.0,0.0113293]
[1766262166120,0.02442399,88325.0,88306.0,0.0113293]
[1766262166322,0.02442399,88324.0,88306.0,0.0113293]
[1766262166523,0.02442399,88323.0,88306.0,0.0113293]
[1766262166824,0.0113266,88328.0,88306.0,0.0113293]
[1766262167025,0.02442371,88327.0,88306.0,0.0113293]
[1766262167225,0.02442371,88326.0,88306.0,0.0113293]
[1766262167525,0.02442371,88325.0,88306.0,0.0113293]
[1766262167724,0.02442371,88324.0,88306.0,0.0113293]
[1766262168027,0.02442371,88323.0,88306.0,0.0113293]
[1766262168225,0.0113266,88328.0,88306.0,0.0113293]
[1766262168525,0.02442327,88327.0,88306.0,0.0113293]
[1766262168724,0.02442327,88326.0,88306.0,0.0113293]
[1766262168925,0.02442327,88325.0,88306.0,0.0113293]
[1766262169126,0.02442327,88324.0,88306.0,0.0113293]
[1766262169325,0.02442327,88323.0,88306.0,0.0113293]
[1766262169529,0.0113266,88328.0,88306.0,0.0113293]
[1766262169723,0.02442334,88327.0,88306.0,0.0113293]
[1766262169922,0.02442334,88326.0,88306.0,0.0113293]
[1766262170123,0.02442334,88325.0,88306.0,0.0113293]
[1766262170323,0.02442334,88324.0,88306.0,0.0113293]
[1766262170522,0.02442334,88323.0,88306.0,0.0113293]
[1766262170721,0.0113266,88328.0,88306.0,0.0113293]
[1766262170922,0.02442308,88327.0,88306.0,0.0113293]
[1766262171222,0.02442308,88326.0,88306.0,0.0113293]
[1766262171522,0.02442308,88325.0,88306.0,0.0113293]
[1766262171721,0.02442308,88324.0,88306.0,0.0113293]
[1766262171920,0.02442308,88323.0,88306.0,0.0113293]